[Event "*** Titled Tuesday Blitz"]
[Site "Chess.com"]
[Date "2019.10.01"]
[Round "5"]
[White "IMRosen"]
[Black "vova-79"]
[Result "0-1"]
[WhiteElo "2622"]
[BlackElo "2461"]
[TimeControl "180+2"]
[EndTime "14:11:44 PDT"]
[Termination "vova-79 won on time"]

1. e4 {[%clk 0:03:01.9]} 1... e6 {[%clk 0:03:00.1]} 2. Nf3 {[%clk 0:03:02.1]}
2... d5 {[%clk 0:03:00.4]} 3. e5 {[%clk 0:03:03.8]} 3... c5 {[%clk 0:03:00.3]}
4. b4 {[%clk 0:03:05.2]} 4... b6 {[%clk 0:03:01.3]} 5. Bb2 {[%clk 0:02:56.1]}
5... Ba6 {[%clk 0:02:55.4]} 6. Bxa6 {[%clk 0:02:54.6]} 6... Nxa6 {[%clk
0:02:54.6]} 7. c3 {[%clk 0:02:56.2]} 7... Qd7 {[%clk 0:02:51]} 8. a3 {[%clk
0:02:48.7]} 8... Nh6 {[%clk 0:02:45.5]} 9. d4 {[%clk 0:02:44.4]} 9... Be7 {[%clk
0:02:45.1]} 10. O-O {[%clk 0:02:44.2]} 10... O-O {[%clk 0:02:45.5]} 11. Nbd2
{[%clk 0:02:45.7]} 11... cxd4 {[%clk 0:02:39.4]} 12. cxd4 {[%clk 0:02:44.8]}
12... Rfc8 {[%clk 0:02:36.8]} 13. Nb3 {[%clk 0:02:35.5]} 13... Rc7 {[%clk
0:02:31.1]} 14. Qd3 {[%clk 0:02:34.9]} 14... Qa4 {[%clk 0:02:29]} 15. b5 {[%clk
0:02:15.9]} 15... Nb8 {[%clk 0:02:28.3]} 16. Rfc1 {[%clk 0:02:17.3]} 16... Rxc1+
{[%clk 0:02:25]} 17. Rxc1 {[%clk 0:02:19.2]} 17... Nd7 {[%clk 0:02:25.4]} 18.
Rc7 {[%clk 0:02:16]} 18... Rd8 {[%clk 0:02:25.4]} 19. Nbd2 {[%clk 0:01:18.2]}
19... f6 {[%clk 0:02:12.3]} 20. h3 {[%clk 0:01:13.8]} 20... fxe5 {[%clk
0:02:08.9]} 21. Nxe5 {[%clk 0:01:02.8]} 21... Nxe5 {[%clk 0:02:04.2]} 22. dxe5
{[%clk 0:01:04.7]} 22... Qd1+ {[%clk 0:01:44.2]} 23. Kh2 {[%clk 0:01:04.7]}
23... Bg5 {[%clk 0:01:41.5]} 24. Qg3 {[%clk 0:00:23.5]} 24... Qxd2 {[%clk
0:01:35.4]} 25. Bc1 {[%clk 0:00:23.7]} 25... Qxc1 {[%clk 0:01:27.3]} 26. Rxc1
{[%clk 0:00:24.3]} 26... Bxc1 {[%clk 0:01:27.3]} 27. Qc3 {[%clk 0:00:26]} 27...
Bg5 {[%clk 0:01:20.2]} 28. h4 {[%clk 0:00:13.3]} 28... Bxh4 {[%clk 0:01:10.4]}
29. Qh3 {[%clk 0:00:14.5]} 29... Nf5 {[%clk 0:01:07.6]} 30. g4 {[%clk
0:00:13.6]} 30... Bxf2 {[%clk 0:01:06]} 31. gxf5 {[%clk 0:00:13.7]} 31... Bd4
{[%clk 0:01:06.1]} 32. fxe6 {[%clk 0:00:08.2]} 32... Bxe5+ {[%clk 0:01:06.6]}
33. Kg2 {[%clk 0:00:09.7]} 33... Bf6 {[%clk 0:01:02.7]} 34. Qh5 {[%clk
0:00:06.8]} 34... g6 {[%clk 0:01:01.2]} 35. Qf3 {[%clk 0:00:04.9]} 35... Kg7
{[%clk 0:01:00.6]} 36. Qf4 {[%clk 0:00:05.6]} 36... Re8 {[%clk 0:00:59.3]} 37.
Qd6 {[%clk 0:00:04.9]} 37... d4 {[%clk 0:00:59.4]} 38. Kf3 {[%clk 0:00:05.4]}
38... h5 {[%clk 0:00:59.4]} 39. Ke4 {[%clk 0:00:04.8]} 39... h4 {[%clk
0:00:59.7]} 40. Kd5 {[%clk 0:00:03.6]} 40... Rd8 {[%clk 0:00:59]} 0-1

[Event "*** Titled Tuesday Blitz"]
[Site "Chess.com"]
[Date "2019.10.01"]
[Round "5"]
[White "sandropozo"]
[Black "eljanov"]
[Result "0-1"]
[WhiteElo "2616"]
[BlackElo "2788"]
[TimeControl "180+2"]
[EndTime "14:11:47 PDT"]
[Termination "eljanov won on time"]

1. d4 {[%clk 0:02:59.5]} 1... Nf6 {[%clk 0:03:00.2]} 2. Nf3 {[%clk 0:03:00.8]}
2... e6 {[%clk 0:02:59.4]} 3. Bf4 {[%clk 0:03:01.5]} 3... c5 {[%clk 0:02:59.9]}
4. e3 {[%clk 0:03:03]} 4... cxd4 {[%clk 0:02:59.3]} 5. exd4 {[%clk 0:03:04.3]}
5... b6 {[%clk 0:03:00.6]} 6. Bd3 {[%clk 0:03:04]} 6... Bb7 {[%clk 0:03:01.4]}
7. Nbd2 {[%clk 0:03:04.6]} 7... Be7 {[%clk 0:03:00.5]} 8. h3 {[%clk 0:03:05.3]}
8... O-O {[%clk 0:03:01.2]} 9. O-O {[%clk 0:03:06.9]} 9... d6 {[%clk 0:03:01.4]}
10. a4 {[%clk 0:03:05.2]} 10... a6 {[%clk 0:03:01.9]} 11. Re1 {[%clk 0:03:03.9]}
11... Nbd7 {[%clk 0:03:03]} 12. Bh2 {[%clk 0:02:59.2]} 12... Qc7 {[%clk
0:03:02.3]} 13. c3 {[%clk 0:02:36.2]} 13... h6 {[%clk 0:02:55.9]} 14. Qe2 {[%clk
0:02:37.1]} 14... Rfe8 {[%clk 0:02:49.5]} 15. Nc4 {[%clk 0:02:04.6]} 15... Bc6
{[%clk 0:02:35.5]} 16. Ne3 {[%clk 0:02:03.1]} 16... Qb7 {[%clk 0:02:34.2]} 17.
Nd2 {[%clk 0:01:45.9]} 17... b5 {[%clk 0:02:18.9]} 18. axb5 {[%clk 0:01:35]}
18... axb5 {[%clk 0:02:18.7]} 19. c4 {[%clk 0:01:36.5]} 19... bxc4 {[%clk
0:02:05.9]} 20. Ndxc4 {[%clk 0:01:38.4]} 20... d5 {[%clk 0:01:42.4]} 21. Ne5
{[%clk 0:00:46.3]} 21... Nxe5 {[%clk 0:01:39.1]} 22. Bxe5 {[%clk 0:00:48.2]}
22... Nd7 {[%clk 0:01:27.1]} 23. Rxa8 {[%clk 0:00:41.8]} 23... Rxa8 {[%clk
0:01:23.3]} 24. Bf4 {[%clk 0:00:18.7]} 24... Bf6 {[%clk 0:01:10.3]} 25. Ng4
{[%clk 0:00:16.9]} 25... Bxd4 {[%clk 0:01:10.7]} 26. Bxh6 {[%clk 0:00:17.9]}
26... Qxb2 {[%clk 0:00:50.3]} 27. Qf3 {[%clk 0:00:11.5]} 27... Ra1 {[%clk
0:00:50.9]} 28. Rxa1 {[%clk 0:00:11.5]} 28... Qxa1+ {[%clk 0:00:51.8]} 29. Kh2
{[%clk 0:00:13.3]} 29... Ne5 {[%clk 0:00:46.8]} 30. Qg3 {[%clk 0:00:12.6]} 30...
Nxg4+ {[%clk 0:00:44.7]} 31. Qxg4 {[%clk 0:00:14.5]} 31... Bxf2 {[%clk
0:00:44.1]} 32. Bf1 {[%clk 0:00:10.3]} 32... Bd4 {[%clk 0:00:39.5]} 33. Bd3
{[%clk 0:00:05.5]} 33... Qg1+ {[%clk 0:00:38]} 34. Kg3 {[%clk 0:00:07.2]} 34...
Qf2+ {[%clk 0:00:32.7]} 35. Kh2 {[%clk 0:00:08.4]} 35... Be5+ {[%clk 0:00:33.5]}
0-1

[Event "*** Titled Tuesday Blitz"]
[Site "Chess.com"]
[Date "2019.10.01"]
[Round "5"]
[White "Quaritch79"]
[Black "maxip32"]
[Result "1-0"]
[WhiteElo "2306"]
[BlackElo "2483"]
[TimeControl "180+2"]
[EndTime "14:12:00 PDT"]
[Termination "Quaritch79 won by resignation"]

1. e4 {[%clk 0:03:01.8]} 1... c5 {[%clk 0:03:00.4]} 2. Nf3 {[%clk 0:03:02.7]}
2... d6 {[%clk 0:03:01.5]} 3. d4 {[%clk 0:03:03.9]} 3... cxd4 {[%clk 0:03:03.4]}
4. Nxd4 {[%clk 0:03:05.5]} 4... Nf6 {[%clk 0:03:04.8]} 5. Nc3 {[%clk 0:03:07]}
5... a6 {[%clk 0:03:05.8]} 6. Bg5 {[%clk 0:03:07.7]} 6... e6 {[%clk 0:03:07.3]}
7. f4 {[%clk 0:03:09.3]} 7... Nbd7 {[%clk 0:03:06.1]} 8. Qf3 {[%clk 0:03:10.8]}
8... h6 {[%clk 0:03:07.6]} 9. Bh4 {[%clk 0:03:11.6]} 9... e5 {[%clk 0:03:09.1]}
10. fxe5 {[%clk 0:03:08.2]} 10... Nxe5 {[%clk 0:03:09.5]} 11. Qd1 {[%clk
0:02:58.6]} 11... Be7 {[%clk 0:03:08.1]} 12. Be2 {[%clk 0:02:57.8]} 12... Nxe4
{[%clk 0:03:02.9]} 13. Bxe7 {[%clk 0:02:53.2]} 13... Nxc3 {[%clk 0:03:04.1]} 14.
Bxd8 {[%clk 0:02:48.8]} 14... Nxd1 {[%clk 0:03:04.3]} 15. Bc7 {[%clk 0:02:47.2]}
15... Nxb2 {[%clk 0:03:03.6]} 16. Bxd6 {[%clk 0:02:46.5]} 16... Nbc4 {[%clk
0:03:04.6]} 17. Bb4 {[%clk 0:02:42.3]} 17... Bd7 {[%clk 0:03:02.6]} 18. O-O
{[%clk 0:02:38.9]} 18... f6 {[%clk 0:02:58.5]} 19. Bh5+ {[%clk 0:02:38.2]} 19...
Kd8 {[%clk 0:02:55.7]} 20. Rfd1 {[%clk 0:02:30.1]} 20... Kc7 {[%clk 0:02:56.1]}
21. Nf3 {[%clk 0:02:19.3]} 21... Nxf3+ {[%clk 0:02:45.3]} 22. Bxf3 {[%clk
0:02:20.3]} 22... Bc6 {[%clk 0:02:45.7]} 23. Rd4 {[%clk 0:02:15.2]} 23... b5
{[%clk 0:02:45]} 24. Rg4 {[%clk 0:02:10.6]} 24... g5 {[%clk 0:02:44.9]} 25. Bxc6
{[%clk 0:02:07]} 25... Kxc6 {[%clk 0:02:45.2]} 26. Rf1 {[%clk 0:02:07]} 26...
Rhf8 {[%clk 0:02:18]} 27. Bxf8 {[%clk 0:02:01.1]} 27... Rxf8 {[%clk 0:02:19.4]}
28. Re4 {[%clk 0:02:01.2]} 28... Kd5 {[%clk 0:02:14.5]} 29. Re7 {[%clk
0:02:02.1]} 29... f5 {[%clk 0:02:11.9]} 30. Rd1+ {[%clk 0:02:00.1]} 30... Kc5
{[%clk 0:02:13]} 31. Ra7 {[%clk 0:02:00.5]} 31... a5 {[%clk 0:02:12.8]} 32. c3
{[%clk 0:01:57.5]} 32... f4 {[%clk 0:02:10.8]} 33. Rc7+ {[%clk 0:01:58.4]} 33...
Kb6 {[%clk 0:02:11.5]} 34. Rh7 {[%clk 0:01:59.6]} 34... Rf6 {[%clk 0:02:12.5]}
35. Rdd7 {[%clk 0:01:58.1]} 35... f3 {[%clk 0:02:11.5]} 36. gxf3 {[%clk
0:01:58.3]} 36... Ne5 {[%clk 0:02:10.4]} 37. Rb7+ {[%clk 0:01:58.7]} 37... Kc5
{[%clk 0:02:11.8]} 38. Rhc7+ {[%clk 0:01:58.1]} 38... Rc6 {[%clk 0:02:07.6]} 39.
Rxc6+ {[%clk 0:01:53.4]} 39... Kxc6 {[%clk 0:02:09.4]} 40. Rh7 {[%clk
0:01:54.8]} 40... Nxf3+ {[%clk 0:02:10.7]} 41. Kf2 {[%clk 0:01:55.4]} 41... Nd2
{[%clk 0:02:11.2]} 42. Rxh6+ {[%clk 0:01:56.5]} 42... Kc5 {[%clk 0:02:12.6]} 43.
Rg6 {[%clk 0:01:56.4]} 43... Kc4 {[%clk 0:02:13.8]} 44. Ke2 {[%clk 0:01:56.8]}
44... Ne4 {[%clk 0:02:14.2]} 45. Ke3 {[%clk 0:01:57.7]} 45... Nxc3 {[%clk
0:02:14.3]} 46. Rxg5 {[%clk 0:01:58.1]} 46... Nxa2 {[%clk 0:02:15.8]} 47. h4
{[%clk 0:01:59.5]} 47... a4 {[%clk 0:02:17.1]} 48. Kd2 {[%clk 0:01:59.4]} 48...
a3 {[%clk 0:02:19]} 49. Kc2 {[%clk 0:01:57.8]} 49... Nb4+ {[%clk 0:02:20.3]} 50.
Kb1 {[%clk 0:01:59.3]} 50... Nd3 {[%clk 0:02:18]} 51. h5 {[%clk 0:01:50.3]}
51... b4 {[%clk 0:02:18.8]} 52. h6 {[%clk 0:01:48.6]} 52... b3 {[%clk
0:01:55.8]} 53. h7 {[%clk 0:01:42]} 53... a2+ {[%clk 0:01:40.3]} 54. Ka1 {[%clk
0:01:42.7]} 54... Ne1 {[%clk 0:01:41.3]} 55. Rg4+ {[%clk 0:01:37.3]} 55... Kb5
{[%clk 0:01:38]} 56. Kb2 {[%clk 0:01:37.3]} 56... Nd3+ {[%clk 0:01:30.8]} 57.
Ka1 {[%clk 0:01:38.6]} 57... Ne1 {[%clk 0:01:31.4]} 58. Rg1 {[%clk 0:01:25.7]}
58... Nf3 {[%clk 0:01:16.2]} 59. Rd1 {[%clk 0:01:20]} 1-0

[Event "*** Titled Tuesday Blitz"]
[Site "Chess.com"]
[Date "2019.10.01"]
[Round "5"]
[White "TheFireChess"]
[Black "tteshan"]
[Result "1-0"]
[WhiteElo "2513"]
[BlackElo "2258"]
[TimeControl "180+2"]
[EndTime "14:12:03 PDT"]
[Termination "TheFireChess won by resignation"]

1. e4 {[%clk 0:03:00.9]} 1... c5 {[%clk 0:03:00.5]} 2. c3 {[%clk 0:03:01.8]}
2... Nf6 {[%clk 0:03:00.7]} 3. e5 {[%clk 0:02:58.3]} 3... Nd5 {[%clk 0:03:00.1]}
4. Nf3 {[%clk 0:03:00.2]} 4... Nc6 {[%clk 0:02:56.8]} 5. Bc4 {[%clk 0:03:01.1]}
5... Nb6 {[%clk 0:02:57.4]} 6. Bb3 {[%clk 0:03:02.2]} 6... d6 {[%clk 0:02:56.5]}
7. exd6 {[%clk 0:03:03.1]} 7... Qxd6 {[%clk 0:02:53.9]} 8. O-O {[%clk
0:03:04.6]} 8... c4 {[%clk 0:02:45.7]} 9. Bc2 {[%clk 0:03:03.8]} 9... Bg4 {[%clk
0:02:45.4]} 10. h3 {[%clk 0:03:04.5]} 10... Bh5 {[%clk 0:02:45.6]} 11. Re1
{[%clk 0:03:05.8]} 11... O-O-O {[%clk 0:02:42.3]} 12. b3 {[%clk 0:03:06.1]}
12... e5 {[%clk 0:02:29.4]} 13. Na3 {[%clk 0:02:50.9]} 13... cxb3 {[%clk
0:01:57.3]} 14. axb3 {[%clk 0:02:52.8]} 14... Kb8 {[%clk 0:01:54.6]} 15. Be4
{[%clk 0:02:13.5]} 15... Nd5 {[%clk 0:01:12.6]} 16. Nc4 {[%clk 0:01:36.5]} 16...
Qc7 {[%clk 0:01:07.2]} 17. Qc2 {[%clk 0:01:27.4]} 17... f6 {[%clk 0:00:31.7]}
18. g4 {[%clk 0:00:30.6]} 18... Bg6 {[%clk 0:00:30.5]} 19. d3 {[%clk 0:00:25.5]}
19... Nf4 {[%clk 0:00:29]} 20. Bxf4 {[%clk 0:00:25.7]} 20... exf4 {[%clk
0:00:29.1]} 21. d4 {[%clk 0:00:25.8]} 21... Bxe4 {[%clk 0:00:27.9]} 22. Qxe4
{[%clk 0:00:27.7]} 22... h5 {[%clk 0:00:28.5]} 23. g5 {[%clk 0:00:28.4]} 23...
fxg5 {[%clk 0:00:27.4]} 24. Nxg5 {[%clk 0:00:28.6]} 24... Bd6 {[%clk 0:00:15.8]}
25. Ne6 {[%clk 0:00:27.7]} 25... Qd7 {[%clk 0:00:17.3]} 26. Nxd8 {[%clk
0:00:28.6]} 26... Rxd8 {[%clk 0:00:17.8]} 27. Nxd6 {[%clk 0:00:30]} 27... Qxd6
{[%clk 0:00:18.6]} 28. Qe6 {[%clk 0:00:27.3]} 28... Qf8 {[%clk 0:00:18.7]} 29.
d5 {[%clk 0:00:25.2]} 29... Rd6 {[%clk 0:00:14.7]} 30. Qe8+ {[%clk 0:00:24.7]}
30... Qxe8 {[%clk 0:00:16.1]} 31. Rxe8+ {[%clk 0:00:26.1]} 31... Nd8 {[%clk
0:00:18]} 32. c4 {[%clk 0:00:27.3]} 32... Kc7 {[%clk 0:00:17.7]} 33. Re7+ {[%clk
0:00:27.6]} 33... Kb6 {[%clk 0:00:18.5]} 34. Rxg7 {[%clk 0:00:28.8]} 34... a6
{[%clk 0:00:17.5]} 35. Re1 {[%clk 0:00:29.5]} 35... Kc5 {[%clk 0:00:16.6]} 36.
Ree7 {[%clk 0:00:26.3]} 36... b5 {[%clk 0:00:17]} 37. Rc7+ {[%clk 0:00:24.9]}
37... Kd4 {[%clk 0:00:16.7]} 38. Rcd7 {[%clk 0:00:25.6]} 38... Kc5 {[%clk
0:00:14.8]} 39. Rxd6 {[%clk 0:00:26.1]} 39... Kxd6 {[%clk 0:00:16.2]} 40. Rg6+
{[%clk 0:00:26.6]} 40... Kc5 {[%clk 0:00:17]} 41. Rxa6 {[%clk 0:00:27.9]} 41...
bxc4 {[%clk 0:00:18.2]} 42. bxc4 {[%clk 0:00:29.8]} 42... Kxc4 {[%clk 0:00:20]}
43. Rf6 {[%clk 0:00:30.9]} 43... Kxd5 {[%clk 0:00:19.8]} 44. Rxf4 {[%clk
0:00:32.3]} 44... Ke5 {[%clk 0:00:20.9]} 45. Rh4 {[%clk 0:00:32]} 1-0

[Event "*** Titled Tuesday Blitz"]
[Site "Chess.com"]
[Date "2019.10.01"]
[Round "5"]
[White "chessdjw"]
[Black "Spalir"]
[Result "1-0"]
[WhiteElo "2651"]
[BlackElo "2812"]
[TimeControl "180+2"]
[EndTime "14:12:18 PDT"]
[Termination "chessdjw won by resignation"]

1. c4 {[%clk 0:03:01.9]} 1... c6 {[%clk 0:03:00.2]} 2. Nf3 {[%clk 0:03:00.4]}
2... d5 {[%clk 0:02:58]} 3. e3 {[%clk 0:03:02]} 3... Nf6 {[%clk 0:02:57.1]} 4.
Nc3 {[%clk 0:03:03.4]} 4... e6 {[%clk 0:02:55.1]} 5. b3 {[%clk 0:03:04.3]} 5...
Nbd7 {[%clk 0:02:53.5]} 6. Bb2 {[%clk 0:03:01.9]} 6... Bd6 {[%clk 0:02:51.6]} 7.
Qc2 {[%clk 0:02:58.6]} 7... O-O {[%clk 0:02:52.1]} 8. Rg1 {[%clk 0:02:48.9]}
8... e5 {[%clk 0:02:50.1]} 9. g4 {[%clk 0:02:47.1]} 9... e4 {[%clk 0:02:38.9]}
10. Nd4 {[%clk 0:02:42.2]} 10... Ne5 {[%clk 0:02:31.2]} 11. g5 {[%clk
0:02:40.3]} 11... Nfg4 {[%clk 0:02:29.2]} 12. h3 {[%clk 0:01:38.4]} 12... Nh2
{[%clk 0:02:29.7]} 13. O-O-O {[%clk 0:01:32.7]} 13... Nxf1 {[%clk 0:02:29.5]}
14. Rdxf1 {[%clk 0:01:12.9]} 14... Nd3+ {[%clk 0:02:29.2]} 15. Kb1 {[%clk
0:01:13.1]} 15... Be5 {[%clk 0:02:21.3]} 16. f3 {[%clk 0:00:41.3]} 16... Bxh3
{[%clk 0:02:16.6]} 17. fxe4 {[%clk 0:00:42.3]} 17... Bxf1 {[%clk 0:02:15.9]} 18.
Rxf1 {[%clk 0:00:44.2]} 18... Nxb2 {[%clk 0:02:11.9]} 19. exd5 {[%clk
0:00:43.7]} 19... Bxd4 {[%clk 0:01:48.8]} 20. Rh1 {[%clk 0:00:37]} 20... g6
{[%clk 0:01:47]} 21. exd4 {[%clk 0:00:38.2]} 21... Qxg5 {[%clk 0:01:44.1]} 22.
Kxb2 {[%clk 0:00:34.8]} 22... h5 {[%clk 0:01:36.8]} 23. d6 {[%clk 0:00:35.4]}
23... Rae8 {[%clk 0:01:33.6]} 24. c5 {[%clk 0:00:35.9]} 24... Qg2 {[%clk
0:01:32.2]} 25. Rh4 {[%clk 0:00:32.5]} 25... Qg5 {[%clk 0:01:25.3]} 26. Rh3
{[%clk 0:00:22.8]} 26... Qg4 {[%clk 0:01:24.5]} 27. Qd3 {[%clk 0:00:21.5]} 27...
h4 {[%clk 0:01:22.9]} 28. d5 {[%clk 0:00:19]} 28... Re5 {[%clk 0:01:16.3]} 29.
dxc6 {[%clk 0:00:15.8]} 29... bxc6 {[%clk 0:01:18.2]} 30. a3 {[%clk 0:00:12.6]}
30... Rxc5 {[%clk 0:01:05.7]} 31. Re3 {[%clk 0:00:13.1]} 31... Qf5 {[%clk
0:00:56.4]} 32. Qd4 {[%clk 0:00:11.8]} 32... Rd5 {[%clk 0:00:46.5]} 33. Nxd5
{[%clk 0:00:12.2]} 33... cxd5 {[%clk 0:00:47.2]} 34. Qxh4 {[%clk 0:00:09.1]}
34... g5 {[%clk 0:00:45.8]} 35. Qd4 {[%clk 0:00:09.3]} 35... Rd8 {[%clk
0:00:44.8]} 36. Re5 {[%clk 0:00:08.7]} 36... Qg6 {[%clk 0:00:41.8]} 37. Rxd5
{[%clk 0:00:05.7]} 37... Rd7 {[%clk 0:00:38.3]} 38. a4 {[%clk 0:00:06]} 38... g4
{[%clk 0:00:38.1]} 39. Qf4 {[%clk 0:00:04.8]} 39... f6 {[%clk 0:00:37.7]} 40.
Qe3 {[%clk 0:00:04.7]} 40... g3 {[%clk 0:00:37.4]} 41. Qe6+ {[%clk 0:00:05.2]}
41... Qf7 {[%clk 0:00:38.9]} 42. Qg4+ {[%clk 0:00:06.5]} 42... Qg7 {[%clk
0:00:40.2]} 43. Qe6+ {[%clk 0:00:07.2]} 43... Kf8 {[%clk 0:00:40.7]} 44. Rc5
{[%clk 0:00:07.6]} 44... Rd8 {[%clk 0:00:39.7]} 45. Rc7 {[%clk 0:00:08.2]} 45...
Re8 {[%clk 0:00:39]} 46. Qxe8+ {[%clk 0:00:08.6]} 46... Kxe8 {[%clk 0:00:38.8]}
47. Rxg7 {[%clk 0:00:10.5]} 1-0

[Event "*** Titled Tuesday Blitz"]
[Site "Chess.com"]
[Date "2019.10.01"]
[Round "5"]
[White "Hikaru"]
[Black "alishersuleymenov"]
[Result "1/2-1/2"]
[WhiteElo "3152"]
[BlackElo "2712"]
[TimeControl "180+2"]
[EndTime "14:12:26 PDT"]
[Termination "Game drawn by stalemate"]

1. e4 {[%clk 0:03:01.9]} 1... c5 {[%clk 0:02:59.4]} 2. Nc3 {[%clk 0:03:01.3]}
2... e6 {[%clk 0:03:00.9]} 3. f4 {[%clk 0:03:02]} 3... d5 {[%clk 0:03:02.4]} 4.
exd5 {[%clk 0:03:02.5]} 4... exd5 {[%clk 0:03:04.3]} 5. Bb5+ {[%clk 0:03:04]}
5... Nc6 {[%clk 0:03:05.7]} 6. Nf3 {[%clk 0:02:55.7]} 6... Nf6 {[%clk
0:03:05.4]} 7. Ne5 {[%clk 0:02:56.7]} 7... Bd7 {[%clk 0:03:06.3]} 8. Bxc6 {[%clk
0:02:57.2]} 8... Bxc6 {[%clk 0:03:06.6]} 9. d4 {[%clk 0:02:56.7]} 9... Be7
{[%clk 0:03:03.7]} 10. Be3 {[%clk 0:02:57]} 10... cxd4 {[%clk 0:03:00.5]} 11.
Bxd4 {[%clk 0:02:57.8]} 11... O-O {[%clk 0:03:02.2]} 12. O-O {[%clk 0:02:58.9]}
12... Nd7 {[%clk 0:02:48.1]} 13. Nxd7 {[%clk 0:02:57.9]} 13... Qxd7 {[%clk
0:02:50]} 14. f5 {[%clk 0:02:58.9]} 14... f6 {[%clk 0:02:50.9]} 15. Qf3 {[%clk
0:02:55.1]} 15... Bd6 {[%clk 0:02:47.1]} 16. a3 {[%clk 0:02:53.5]} 16... Rfe8
{[%clk 0:02:45.1]} 17. Rad1 {[%clk 0:02:54.3]} 17... Qf7 {[%clk 0:02:40.2]} 18.
Qg4 {[%clk 0:02:53.8]} 18... a6 {[%clk 0:02:30]} 19. Rfe1 {[%clk 0:02:52.7]}
19... Rxe1+ {[%clk 0:02:29.3]} 20. Rxe1 {[%clk 0:02:54.3]} 20... Re8 {[%clk
0:02:31]} 21. Re2 {[%clk 0:02:50.3]} 21... Be5 {[%clk 0:02:29.2]} 22. Rd2 {[%clk
0:02:45]} 22... Bxd4+ {[%clk 0:02:10.4]} 23. Qxd4 {[%clk 0:02:46.9]} 23... Qh5
{[%clk 0:02:09.2]} 24. Qf4 {[%clk 0:02:40.4]} 24... Re1+ {[%clk 0:02:02.2]} 25.
Kf2 {[%clk 0:02:39.5]} 25... Re5 {[%clk 0:02:03.2]} 26. g4 {[%clk 0:02:40.2]}
26... Qh4+ {[%clk 0:02:03.7]} 27. Qg3 {[%clk 0:02:34.3]} 27... Qg5 {[%clk
0:01:49.6]} 28. Rd1 {[%clk 0:02:33.4]} 28... h5 {[%clk 0:01:47.2]} 29. h4 {[%clk
0:01:55.1]} 29... Qxg4 {[%clk 0:01:44.2]} 30. Qxg4 {[%clk 0:01:56.4]} 30... hxg4
{[%clk 0:01:46.1]} 31. Kg3 {[%clk 0:01:58.1]} 31... Rxf5 {[%clk 0:01:46.5]} 32.
Rd2 {[%clk 0:01:58.2]} 32... Kf7 {[%clk 0:01:37.2]} 33. Kxg4 {[%clk 0:01:59.2]}
33... Re5 {[%clk 0:01:38.7]} 34. Ne2 {[%clk 0:01:59.9]} 34... Re4+ {[%clk
0:01:32.2]} 35. Kg3 {[%clk 0:02:00.6]} 35... Ke6 {[%clk 0:01:29.2]} 36. Nd4+
{[%clk 0:01:58.9]} 36... Ke5 {[%clk 0:01:26.4]} 37. Nf3+ {[%clk 0:02:00.3]}
37... Kd6 {[%clk 0:01:27.4]} 38. c3 {[%clk 0:01:58.7]} 38... Bd7 {[%clk
0:01:26.5]} 39. Rh2 {[%clk 0:01:59.6]} 39... Bg4 {[%clk 0:00:56.8]} 40. Nd2
{[%clk 0:01:55.1]} 40... Re2 {[%clk 0:00:57.8]} 41. Rxe2 {[%clk 0:01:56.4]}
41... Bxe2 {[%clk 0:00:59.7]} 42. Kf4 {[%clk 0:01:58]} 42... Bd1 {[%clk
0:00:52.3]} 43. Nf1 {[%clk 0:01:54.7]} 43... g6 {[%clk 0:00:46.7]} 44. Ne3
{[%clk 0:01:52.3]} 44... Be2 {[%clk 0:00:47.6]} 45. Nc2 {[%clk 0:01:52.5]} 45...
Kc5 {[%clk 0:00:44.7]} 46. Nd4 {[%clk 0:01:52.9]} 46... Bh5 {[%clk 0:00:35.2]}
47. b3 {[%clk 0:01:52.4]} 47... a5 {[%clk 0:00:33.3]} 48. Ke3 {[%clk 0:01:49.7]}
48... Bg4 {[%clk 0:00:32.4]} 49. Kf4 {[%clk 0:01:49.2]} 49... Bd1 {[%clk
0:00:29.6]} 50. a4 {[%clk 0:01:50.6]} 50... Bh5 {[%clk 0:00:22.1]} 51. Ke3
{[%clk 0:01:51.5]} 51... Kd6 {[%clk 0:00:22.8]} 52. Kf4 {[%clk 0:01:51.9]} 52...
b6 {[%clk 0:00:21.4]} 53. Nb5+ {[%clk 0:01:52.6]} 53... Kd7 {[%clk 0:00:22.3]}
54. Nd4 {[%clk 0:01:54.5]} 54... Bd1 {[%clk 0:00:23]} 55. Ke3 {[%clk 0:01:55.2]}
55... Ke7 {[%clk 0:00:23.5]} 56. Kd2 {[%clk 0:01:55.8]} 56... Bh5 {[%clk
0:00:23.6]} 57. Ke3 {[%clk 0:01:57.3]} 57... Kd7 {[%clk 0:00:20.7]} 58. Kf4
{[%clk 0:01:57.9]} 58... Bd1 {[%clk 0:00:18.2]} 59. Ke3 {[%clk 0:01:58.6]} 59...
g5 {[%clk 0:00:18.9]} 60. hxg5 {[%clk 0:01:58.5]} 60... fxg5 {[%clk 0:00:20.8]}
61. Kd2 {[%clk 0:01:59.9]} 61... Bh5 {[%clk 0:00:21.5]} 62. b4 {[%clk
0:02:01.5]} 62... Be8 {[%clk 0:00:14.2]} 63. bxa5 {[%clk 0:02:01]} 63... bxa5
{[%clk 0:00:16.1]} 64. Nf3 {[%clk 0:02:01.5]} 64... g4 {[%clk 0:00:12]} 65. Ne5+
{[%clk 0:02:02.8]} 65... Kd6 {[%clk 0:00:13.6]} 66. Nxg4 {[%clk 0:02:04.7]}
66... Bxa4 {[%clk 0:00:15]} 67. Ne3 {[%clk 0:02:06]} 67... Kc5 {[%clk
0:00:16.2]} 68. Nxd5 {[%clk 0:02:04.6]} 68... Kxd5 {[%clk 0:00:18.1]} 69. Kc1
{[%clk 0:02:05.8]} 69... Kc4 {[%clk 0:00:20]} 70. Kb2 {[%clk 0:02:07.7]} 70...
Bb3 {[%clk 0:00:21.7]} 71. Ka1 {[%clk 0:02:09.6]} 71... Kxc3 {[%clk 0:00:23.2]}
72. Kb1 {[%clk 0:02:11.5]} 72... a4 {[%clk 0:00:25.1]} 73. Ka1 {[%clk
0:02:13.4]} 73... a3 {[%clk 0:00:27]} 74. Kb1 {[%clk 0:02:15.3]} 74... a2+
{[%clk 0:00:28.9]} 75. Ka1 {[%clk 0:02:17.2]} 75... Bc4 {[%clk 0:00:30.3]}
1/2-1/2